[Event "FIDE WYCC Girls U18 2023"]
[Site "Montesilvano"]
[Date "2023.11.21"]
[Round "8.33"]
[White "Saraci, Rinesa"]
[Black "Larsson, Susanne Wiggen"]
[Result "1-0"]
[ECO "A45"]
[WhiteElo "1481"]
[BlackElo "1159"]
[Annotator "NA RC"]
[PlyCount "107"]
[EventDate "2023.11.13"]
[EventType "swiss"]
[EventCountry "ITA"]
[SourceTitle "playchess.com"]
[Source "ChessBase"]
[SourceQuality "1"]
[TimeControl "40/5400+30:1800+30"]

1. d4 {[%emt 0:00:03]} Nf6 {[%emt 0:00:16]} 2. Bf4 {[%emt 0:00:14]} g6 {[%emt 0:00:20]} 3. e3 {[%emt 0:01:11]} Bg7 {[%emt 0:00:13]} 4. Nf3 {[%emt 0:01:21]} O-O {[%emt 0:00:34]} 5. c3 {[%emt 0:02:57]} d6 {[%emt 0:01:03]} 6. Bd3 {[%emt 0:01:10]} b6 {[%emt 0:01:41]} 7. h3 {[%emt 0:03:37]} Bb7 {[%emt 0:01:32]} 8. Bc2 {[%emt 0:02:35]} Nbd7 {[%emt 0:01:54]} 9. O-O {[%emt 0:01:42]} Re8 {[%emt 0:02:48]} 10. Nbd2 {[%emt 0:02:58]} e5 {[%emt 0:01:26]} 11. dxe5 {[%emt 0:02:21]} dxe5 {[%emt 0:03:06]} 12. Bg5 {[%emt 0:06:56]} c5 {[%emt 0:07:55]} 13. e4 {[%emt 0:03:14]} Qc7 {[%emt 0:02:21]} 14. Re1 {[%emt 0:02:02]} Nf8 {[%emt 0:02:37]} 15. Qc1 {[%emt 0:06:24]} Ne6 {[%emt 0:04:11]} 16. Nc4 {[%emt 0:05:39]} Nxg5 {[%emt 0:07:13]} 17. Qxg5 {[%emt 0:02:29]} Nh5 {[%emt 0:03:05]} 18. Qe3 {[%emt 0:10:13]} Nf4 {[%emt 0:06:43]} 19. Red1 {[%emt 0:06:10]} Rad8 {[%emt 0:05:41]} 20. Kh2 {[%emt 0:06:41]} b5 {[%emt 0:06:13]} 21. Ncd2 {[%emt 0:06:09]} Bh6 {[%emt 0:06:25]} 22. g3 {[%emt 0:04:42]} Nxh3 {[%emt 0:00:40]} 23. Qxh6 {[%emt 0:00:45]} Nxf2 {[%emt 0:00:10]} 24. Kg2 {[%emt 0:03:00]} Nxd1 {[%emt 0:00:19]} 25. Rxd1 {[%emt 0:00:06]} f6 {[%emt 0:01:37]} 26. Rh1 {[%emt 0:01:56]} Qg7 {[%emt 0:02:39]} 27. Qe3 {[%emt 0:00:41]} Qc7 {[%emt 0:01:48]} 28. c4 {[%emt 0:02:17]} a6 {[%emt 0:02:14]} 29. Bb3 {[%emt 0:01:39]} b4 {[%emt 0:01:33]} 30. Bc2 {[%emt 0:01:11]} a5 {[%emt 0:00:59]} 31. Nb3 {[%emt 0:01:25]} Rc8 {[%emt 0:02:35]} 32. Qh6 {[%emt 0:01:18]} Re7 {[%emt 0:05:35]} 33. Nh4 {[%emt 0:00:54]} Rg7 {[%emt 0:02:28]} 34. Qe3 {[%emt 0:02:20]} Ba6 {[%emt 0:02:02]} 35. Nd2 {[%emt 0:02:09]} Rd8 {[%emt 0:02:51]} 36. Nhf3 {[%emt 0:01:57]} Bb7 {[%emt 0:02:33]} 37. Nf1 {[%emt 0:02:20]} Ba6 {[%emt 0:05:06]} 38. b3 {[%emt 0:01:27]} g5 {[%emt 0:03:09]} 39. N1h2 {[%emt 0:01:14]} g4 {[%emt 0:01:22]} 40. Nh4 {[%emt 0:00:00]} Bc8 {[%emt 0:00:00]} 41. Rf1 {[%emt 0:03:52]} Rd6 {[%emt 0:04:53]} 42. Nf5 {[%emt 0:03:42]} Bxf5 {[%emt 0:00:26]} 43. Rxf5 {[%emt 0:00:14]} Qd8 {[%emt 0:01:28]} 44. Nf1 {[%emt 0:01:02]} Qc7 {[%emt 0:00:57]} 45. Qf2 {[%emt 0:02:30]} Qe7 {[%emt 0:02:37]} 46. Ne3 {[%emt 0:01:39]} Rg6 {[%emt 0:02:09]} 47. Nd5 {[%emt 0:00:52]} Qg7 {[%emt 0:01:56]} 48. Qxc5 {[%emt 0:01:20]} Rd7 {[%emt 0:02:47]} 49. Qc8+ {[%emt 0:01:22]} Qf8 {[%emt 0:04:07]} 50. Qxd7 {[%emt 0:00:12]} Rg7 {[%emt 0:00:52]} 51. Qe6+ {[%emt 0:00:41]} Kh8 {[%emt 0:01:14]} 52. Qxf6 {[%emt 0:00:30]} Qxf6 {[%emt 0:01:11]} 53. Rxf6 {[%emt 0:00:15]} h5 {[%emt 0:00:22]} 54. Rh6+ {[%emt 0:00:18]} 1-0

[Event "FIDE WYCC Girls U18 2023"]
[Site "Montesilvano"]
[Date "2023.11.21"]
[Round "8.34"]
[White "Chavez Echeverria, Ana Karen"]
[Black "Monteiro, Helen Ramazzotte"]
[Result "1-0"]
[ECO "A48"]
[WhiteElo "1230"]
[BlackElo "1447"]
[Annotator "NA RC"]
[PlyCount "67"]
[EventDate "2023.11.13"]
[EventType "swiss"]
[EventCountry "ITA"]
[SourceTitle "playchess.com"]
[Source "ChessBase"]
[SourceQuality "1"]
[TimeControl "40/5400+30:1800+30"]

1. d4 {[%emt 0:00:15]} Nf6 {[%emt 0:01:17]} 2. Bf4 {[%emt 0:00:08]} g6 {[%emt 0:00:14]} 3. Nf3 {[%emt 0:00:15]} Bg7 {[%emt 0:00:22]} 4. e3 {[%emt 0:00:07]} O-O {[%emt 0:00:14]} 5. c4 {[%emt 0:00:08]} d6 {[%emt 0:00:20]} 6. Nc3 {[%emt 0:00:12]} Nbd7 {[%emt 0:00:26]} 7. Be2 {[%emt 0:00:10]} Nh5 {[%emt 0:00:33]} 8. Bg5 {[%emt 0:00:17]} Re8 {[%emt 0:02:09]} 9. O-O {[%emt 0:00:40]} h6 {[%emt 0:02:22]} 10. Bh4 {[%emt 0:00:22]} Nhf6 {[%emt 0:04:39]} 11. h3 {[%emt 0:03:33]} e5 {[%emt 0:02:34]} 12. dxe5 {[%emt 0:04:09]} dxe5 {[%emt 0:02:35]} 13. e4 {[%emt 0:05:16]} c6 {[%emt 0:02:24]} 14. Qc2 {[%emt 0:05:20]} a5 {[%emt 0:05:37]} 15. a3 {[%emt 0:05:38]} Qe7 {[%emt 0:03:10]} 16. Rab1 {[%emt 0:04:37]} Nc5 {[%emt 0:03:09]} 17. b4 {[%emt 0:02:34]} Ne6 {[%emt 0:06:00]} 18. Rfd1 {[%emt 0:04:09]} g5 {[%emt 0:02:32]} 19. Bg3 {[%emt 0:01:04]} Nd7 {[%emt 0:07:12]} 20. c5 {[%emt 0:16:41]} Nf4 {[%emt 0:07:17]} 21. Nd2 {[%emt 0:09:00]} axb4 {[%emt 0:04:57]} 22. axb4 {[%emt 0:00:25]} b5 {[%emt 0:12:11]} 23. Bf3 {[%emt 0:04:55]} Qf6 {[%emt 0:05:03]} 24. Ne2 {[%emt 0:07:35]} Nf8 {[%emt 0:01:53]} 25. Bxf4 {[%emt 0:05:42]} exf4 {[%emt 0:00:41]} 26. Nf1 {[%emt 0:02:33]} Ng6 {[%emt 0:02:53]} 27. Nh2 {[%emt 0:03:35]} Ne5 {[%emt 0:02:18]} 28. Rd6 {[%emt 0:03:47]} Re6 {[%emt 0:01:16]} 29. Rxe6 {[%emt 0:03:10]} Bxe6 {[%emt 0:03:19]} 30. Nd4 {[%emt 0:00:20]} Nxf3+ {[%emt 0:06:10]} 31. Nhxf3 {[%emt 0:00:37]} Bc4 {[%emt 0:01:17]} 32. e5 {[%emt 0:01:08]} Qd8 {[%emt 0:05:17]} 33. Nxc6 {[%emt 0:00:15]} Qd5 {[%emt 0:00:58]} 34. Ne7+ {[%emt 0:00:14]} 1-0

[Event "FIDE WYCC Girls U18 2023"]
[Site "Montesilvano"]
[Date "2023.11.21"]
[Round "8.35"]
[White "Graziani, Emma"]
[Black "Yim, Jay"]
[Result "1-0"]
[ECO "B30"]
[WhiteElo "1783"]
[BlackElo "1310"]
[Annotator "NA RC"]
[PlyCount "83"]
[EventDate "2023.11.13"]
[EventType "swiss"]
[EventCountry "ITA"]
[SourceTitle "playchess.com"]
[Source "ChessBase"]
[SourceQuality "1"]
[TimeControl "40/5400+30:1800+30"]

1. e4 {[%emt 0:00:02]} c5 {[%emt 0:00:10]} 2. Nf3 {[%emt 0:00:14]} Nc6 {[%emt 0:00:07]} 3. d3 {[%emt 0:00:06]} g6 {[%emt 0:00:23]} 4. g3 {[%emt 0:00:09]} Bg7 {[%emt 0:00:08]} 5. Bg2 {[%emt 0:00:04]} e5 {[%emt 0:00:25]} 6. O-O {[%emt 0:00:06]} Nge7 {[%emt 0:00:28]} 7. Nbd2 {[%emt 0:00:17]} O-O {[%emt 0:00:39]} 8. c3 {[%emt 0:00:10]} d6 {[%emt 0:01:09]} 9. Qc2 {[%emt 0:00:33]} b5 {[%emt 0:04:21]} 10. Re1 {[%emt 0:00:18]} a5 {[%emt 0:01:08]} 11. Nf1 {[%emt 0:01:01]} Be6 {[%emt 0:07:05]} 12. Ng5 {[%emt 0:03:14]} Bd7 {[%emt 0:00:35]} 13. f4 {[%emt 0:02:49]} h6 {[%emt 0:01:32]} 14. Nf3 {[%emt 0:00:33]} b4 {[%emt 0:04:21]} 15. Ne3 {[%emt 0:03:04]} Be6 {[%emt 0:02:04]} 16. fxe5 dxe5 {[%emt 0:05:46]} 17. c4 {[%emt 0:14:15]} Rc8 {[%emt 0:02:01]} 18. Nd5 {[%emt 0:00:23]} Nd4 {[%emt 0:04:18]} 19. Nxd4 {[%emt 0:01:13]} cxd4 {[%emt 0:02:00]} 20. Qb3 {[%emt 0:01:23]} Qd6 {[%emt 0:04:52]} 21. a3 {[%emt 0:02:18]} Bxd5 {[%emt 0:07:08]} 22. exd5 {[%emt 0:00:23]} Ra8 {[%emt 0:01:32]} 23. axb4 {[%emt 0:00:52]} Rfb8 {[%emt 0:08:41]} 24. b5 {[%emt 0:00:46]} Nc8 {[%emt 0:00:58]} 25. Bd2 {[%emt 0:01:12]} Qd8 {[%emt 0:07:25]} 26. c5 {[%emt 0:04:39]} Qe8 {[%emt 0:08:36]} 27. b6 {[%emt 0:00:54]} a4 {[%emt 0:01:54]} 28. Qb4 {[%emt 0:04:33]} Ra7 {[%emt 0:12:08]} 29. bxa7 {[%emt 0:05:48]} Rxb4 {[%emt 0:00:18]} 30. a8=Q {[%emt 0:00:10]} Rxb2 {[%emt 0:01:33]} 31. Bc1 {[%emt 0:01:53]} Rc2 {[%emt 0:05:37]} 32. Qxa4 {[%emt 0:00:47]} Qxa4 {[%emt 0:00:22]} 33. Rxa4 Rxc5 {[%emt 0:00:12]} 34. Rc4 {[%emt 0:00:32]} Rxc4 {[%emt 0:05:11]} 35. dxc4 {[%emt 0:00:01]} Bf8 {[%emt 0:01:13]} 36. Rxe5 {[%emt 0:00:16]} Nb6 {[%emt 0:00:19]} 37. Re8 {[%emt 0:01:40]} g5 {[%emt 0:01:19]} 38. c5 {[%emt 0:00:26]} Nc4 {[%emt 0:00:46]} 39. d6 {[%emt 0:00:22]} d3 {[%emt 0:00:42]} 40. d7 {[%emt 0:00:00]} Kg7 {[%emt 0:00:00]} 41. Rxf8 {[%emt 0:01:01]} d2 {[%emt 0:03:19]} 42. Bxd2 {[%emt 0:00:06]} 1-0

[Event "FIDE WYCC Girls U18 2023"]
[Site "Montesilvano"]
[Date "2023.11.22"]
[Round "9.1"]
[White "Zhurova, Anna"]
[Black "Balabayeva, Xeniya"]
[Result "1-0"]
[ECO "C05"]
[WhiteElo "2149"]
[BlackElo "2192"]
[Annotator "RC"]
[PlyCount "129"]
[EventDate "2023.11.13"]
[EventType "swiss"]
[EventCountry "ITA"]
[SourceTitle "playchess.com"]
[Source "ChessBase"]
[SourceQuality "1"]
[TimeControl "40/5400+30:1800+30"]

1. e4 {[%emt 0:01:47]} e6 {[%emt 0:00:10]} 2. d4 {[%emt 0:00:18]} d5 {[%emt 0:00:08]} 3. Nd2 {[%emt 0:00:30]} Nf6 {[%emt 0:01:26]} 4. e5 {[%emt 0:00:11]} Nfd7 {[%emt 0:00:07]} 5. Bd3 {[%emt 0:00:43]} c5 {[%emt 0:00:13]} 6. c3 {[%emt 0:00:06]} Nc6 {[%emt 0:00:09]} 7. Ngf3 {[%emt 0:00:11]} Qb6 {[%emt 0:00:28]} 8. O-O {[%emt 0:00:07]} cxd4 {[%emt 0:00:52]} 9. cxd4 {[%emt 0:00:04]} Nxd4 {[%emt 0:00:29]} 10. Nxd4 {[%emt 0:00:05]} Qxd4 {[%emt 0:00:05]} 11. Nf3 {[%emt 0:00:03]} Qb6 {[%emt 0:02:53]} 12. Qa4 {[%emt 0:00:04]} Qb4 {[%emt 0:10:21]} 13. Qd1 {[%emt 0:00:23]} Nc5 {[%emt 0:24:44]} 14. a3 {[%emt 0:02:09]} Qg4 {[%emt 0:04:10]} 15. h3 Qh5 {[%emt 0:02:17]} 16. Bb5+ {[%emt 0:17:13]} Bd7 {[%emt 0:03:24]} 17. Bxd7+ {[%emt 0:01:48]} Nxd7 {[%emt 0:00:20]} 18. Qa4 {[%emt 0:02:12]} Bc5 {[%emt 0:09:55]} 19. b4 {[%emt 0:20:13]} Bb6 {[%emt 0:01:17]} 20. Ra2 {[%emt 0:09:48]} Ke7 {[%emt 0:07:09]} 21. Bg5+ {[%emt 0:04:40]} f6 {[%emt 0:01:02]} 22. exf6+ {[%emt 0:05:04]} gxf6 {[%emt 0:00:10]} 23. Bh4 {[%emt 0:01:55]} Rhg8 {[%emt 0:05:59]} 24. Kh1 {[%emt 0:00:28]} Bc7 {[%emt 0:11:43]} 25. Re1 {[%emt 0:04:56]} Ne5 {[%emt 0:04:46]} 26. Rae2 {[%emt 0:03:03]} Kf8 27. Nd4 {[%emt 0:13:50]} Qxh4 {[%emt 0:07:29]} 28. Nxe6+ {[%emt 0:00:04]} Kf7 {[%emt 0:00:07]} 29. Nxc7 {[%emt 0:00:36]} Rxg2 30. Qb3 {[%emt 0:00:38]} Rag8 {[%emt 0:01:43]} 31. Qxd5+ Kf8 32. Ne6+ {[%emt 0:06:02]} Ke7 {[%emt 0:00:55]} 33. Qc5+ {[%emt 0:01:04]} Kf7 34. Qc7+ {[%emt 0:00:46]} Kg6 {[%emt 0:02:02]} 35. Nf8+ {[%emt 0:01:51]} Rxf8 {[%emt 0:00:29]} 36. Kxg2 Rg8 37. Re3 {[%emt 0:01:34]} Kh6+ {[%emt 0:01:19]} 38. Rg3 {[%emt 0:00:06]} Ng6 {[%emt 0:00:07]} 39. Rg4 {[%emt 0:00:51]} Qh5 {[%emt 0:00:35]} 40. Kh2 {[%emt 0:00:00]} Qf5 {[%emt 0:00:00]} 41. Qc5 {[%emt 0:06:01]} Qd7 {[%emt 0:07:22]} 42. Qe3+ {[%emt 0:01:16]} Kh5 {[%emt 0:00:31]} 43. Qe6 {[%emt 0:06:48]} Qc7+ {[%emt 0:01:21]} 44. Rg3 {[%emt 0:02:01]} Rf8 45. Qe2+ {[%emt 0:01:17]} Kh6 {[%emt 0:01:26]} 46. Qe3+ {[%emt 0:01:07]} Kh5 {[%emt 0:00:03]} 47. Qc5+ {[%emt 0:00:30]} Qxc5 {[%emt 0:00:30]} 48. bxc5 {[%emt 0:00:04]} Rc8 49. Rb1 {[%emt 0:00:08]} Rc7 {[%emt 0:00:27]} 50. Rgb3 {[%emt 0:00:03]} Rxc5 {[%emt 0:00:49]} 51. Rxb7 {[%emt 0:00:14]} Kh6 {[%emt 0:00:18]} 52. Rxa7 {[%emt 0:00:30]} Rc2 {[%emt 0:00:04]} 53. Rbb7 {[%emt 0:02:22]} Rxf2+ {[%emt 0:00:18]} 54. Kg3 {[%emt 0:00:29]} Rc2 {[%emt 0:00:07]} 55. Rxh7+ {[%emt 0:02:29]} Kg5 {[%emt 0:00:02]} 56. a4 {[%emt 0:02:16]} f5 {[%emt 0:00:37]} 57. Rhg7 {[%emt 0:03:13]} Rc3+ {[%emt 0:03:00]} 58. Kf2 {[%emt 0:00:42]} Kh6 {[%emt 0:01:19]} 59. Rgc7 {[%emt 0:00:11]} Ra3 {[%emt 0:01:21]} 60. Ra6 {[%emt 0:00:23]} Ra2+ {[%emt 0:00:28]} 61. Ke1 Ra1+ {[%emt 0:00:10]} 62. Kd2 {[%emt 0:01:10]} Ra2+ {[%emt 0:00:12]} 63. Rc2 {[%emt 0:00:20]} Ra3 {[%emt 0:00:06]} 64. Rcc6 {[%emt 0:00:06]} Rg3 {[%emt 0:00:09]} 65. Rxg6+ {[%emt 0:00:09]} 1-0

[Event "FIDE WYCC Girls U18 2023"]
[Site "Montesilvano"]
[Date "2023.11.22"]
[Round "9.2"]
[White "Nguyen Hong Nhung"]
[Black "Voriskova, Anna"]
[Result "0-1"]
[ECO "B23"]
[WhiteElo "1975"]
[BlackElo "2065"]
[Annotator "NA RC"]
[PlyCount "86"]
[EventDate "2023.11.13"]
[EventType "swiss"]
[EventCountry "ITA"]
[SourceTitle "playchess.com"]
[Source "ChessBase"]
[SourceQuality "1"]
[TimeControl "40/5400+30:1800+30"]

1. e4 {[%emt 0:00:03]} c5 {[%emt 0:00:07]} 2. Nc3 {[%emt 0:00:05]} e6 {[%emt 0:00:07]} 3. f4 {[%emt 0:00:06]} a6 {[%emt 0:00:09]} 4. Nf3 {[%emt 0:00:11]} d5 {[%emt 0:00:29]} 5. a4 {[%emt 0:06:16]} Nc6 {[%emt 0:00:15]} 6. d3 {[%emt 0:00:09]} Nf6 {[%emt 0:00:40]} 7. g3 {[%emt 0:00:12]} Be7 {[%emt 0:01:03]} 8. Bg2 {[%emt 0:00:13]} dxe4 {[%emt 0:02:11]} 9. Nxe4 {[%emt 0:00:25]} Nxe4 {[%emt 0:00:58]} 10. dxe4 {[%emt 0:00:06]} Qxd1+ {[%emt 0:00:04]} 11. Kxd1 {[%emt 0:00:05]} b6 {[%emt 0:00:50]} 12. c3 {[%emt 0:00:43]} Bb7 {[%emt 0:00:21]} 13. Kc2 {[%emt 0:00:44]} O-O {[%emt 0:00:37]} 14. Be3 {[%emt 0:02:31]} Rac8 {[%emt 0:00:36]} 15. Rhd1 {[%emt 0:10:07]} Rfd8 {[%emt 0:00:18]} 16. Rxd8+ {[%emt 0:03:47]} Rxd8 {[%emt 0:00:01]} 17. Nd2 {[%emt 0:11:45]} Kf8 {[%emt 0:08:23]} 18. Bf3 {[%emt 0:13:04]} g6 {[%emt 0:09:55]} 19. e5 {[%emt 0:05:24]} Rc8 {[%emt 0:14:30]} 20. Nc4 {[%emt 0:12:41]} b5 {[%emt 0:26:32]} 21. axb5 {[%emt 0:01:53]} axb5 {[%emt 0:00:16]} 22. Nd6 {[%emt 0:00:46]} Bxd6 {[%emt 0:00:40]} 23. exd6 {[%emt 0:00:57]} Nd8 {[%emt 0:06:43]} 24. d7 {[%emt 0:05:36]} Rc7 {[%emt 0:00:26]} 25. Ra7 {[%emt 0:00:58]} Ke7 {[%emt 0:02:50]} 26. Bxb7 {[%emt 0:01:34]} Rxb7 {[%emt 0:01:21]} 27. Bxc5+ {[%emt 0:00:09]} Kxd7 {[%emt 0:00:02]} 28. Ra8 {[%emt 0:00:44]} f6 {[%emt 0:03:41]} 29. Bd4 {[%emt 0:01:15]} f5 {[%emt 0:01:06]} 30. Bc5 {[%emt 0:07:16]} Nf7 {[%emt 0:01:29]} 31. Ra6 {[%emt 0:05:08]} e5 {[%emt 0:07:56]} 32. Rf6 {[%emt 0:00:55]} Kc8 {[%emt 0:00:39]} 33. Kb3 {[%emt 0:00:57]} e4 {[%emt 0:01:27]} 34. Kb4 {[%emt 0:00:40]} Nd8 {[%emt 0:01:53]} 35. Bb6 {[%emt 0:02:09]} Kd7 {[%emt 0:02:45]} 36. Kc5 {[%emt 0:01:31]} Ne6+ {[%emt 0:01:44]} 37. Rxe6 {[%emt 0:05:57]} Kxe6 {[%emt 0:00:05]} 38. Ba5 {[%emt 0:00:06]} e3 {[%emt 0:02:04]} 39. c4 {[%emt 0:02:09]} bxc4 {[%emt 0:00:08]} 40. Bc3 {[%emt 0:00:00]} e2 {[%emt 0:00:00]} 41. Kd4 {[%emt 0:01:15]} Rxb2 {[%emt 0:01:56]} 42. h4 {[%emt 0:00:11]} Rc2 {[%emt 0:00:23]} 43. Be1 {[%emt 0:00:12]} Rc1 {[%emt 0:03:37]} 0-1

[Event "FIDE WYCC Girls U18 2023"]
[Site "Montesilvano"]
[Date "2023.11.22"]
[Round "9.3"]
[White "Naymanova, Patricie"]
[Black "Hrebenshchykova, Yelyzaveta"]
[Result "0-1"]
[ECO "C15"]
[WhiteElo "2083"]
[BlackElo "2292"]
[Annotator "RC"]
[PlyCount "78"]
[EventDate "2023.11.13"]
[EventType "swiss"]
[EventCountry "ITA"]
[SourceTitle "playchess.com"]
[Source "ChessBase"]
[SourceQuality "1"]
[TimeControl "40/5400+30:1800+30"]

1. d4 {[%emt 0:00:01]} e6 {[%emt 0:00:04]} 2. Nc3 {[%emt 0:00:12]} d5 {[%emt 0:00:07]} 3. e4 {[%emt 0:01:58]} Bb4 {[%emt 0:00:37]} 4. Bd3 {[%emt 0:02:58]} dxe4 {[%emt 0:04:00]} 5. Bxe4 {[%emt 0:00:05]} Nf6 {[%emt 0:00:05]} 6. Bf3 {[%emt 0:01:38]} Nc6 {[%emt 0:19:59]} 7. Nge2 {[%emt 0:01:47]} e5 {[%emt 0:00:18]} 8. O-O {[%emt 0:14:34]} Bxc3 {[%emt 0:37:18]} 9. Bxc6+ {[%emt 0:01:07]} bxc6 {[%emt 0:00:05]} 10. bxc3 {[%emt 0:00:05]} e4 {[%emt 0:04:38]} 11. Ba3 {[%emt 0:08:58]} Qd5 {[%emt 0:04:42]} 12. Ng3 {[%emt 0:03:53]} Bg4 {[%emt 0:04:48]} 13. f3 {[%emt 0:07:39]} exf3 {[%emt 0:00:04]} 14. gxf3 {[%emt 0:01:45]} Be6 {[%emt 0:00:08]} 15. Re1 {[%emt 0:01:38]} Kd7 {[%emt 0:02:27]} 16. Re5 {[%emt 0:13:02]} Qc4 {[%emt 0:00:05]} 17. Bb4 {[%emt 0:10:20]} Nd5 {[%emt 0:01:45]} 18. Ne4 {[%emt 0:01:18]} Rae8 {[%emt 0:01:49]} 19. Nd2 {[%emt 0:02:56]} Qa6 {[%emt 0:00:16]} 20. Nb3 {[%emt 0:00:30]} Kc8 {[%emt 0:00:19]} 21. Nc5 {[%emt 0:06:54]} Qc4 {[%emt 0:00:14]} 22. Ba5 {[%emt 0:07:50]} g5 {[%emt 0:09:28]} 23. Qb1 {[%emt 0:02:26]} Nb6 {[%emt 0:00:39]} 24. Nd3 {[%emt 0:01:18]} Bd5 {[%emt 0:02:49]} 25. Qe1 {[%emt 0:00:55]} Rd8 {[%emt 0:00:25]} 26. Qe3 {[%emt 0:02:08]} Be6 {[%emt 0:03:46]} 27. Rc5 {[%emt 0:02:07]} Qa4 {[%emt 0:00:12]} 28. Nb2 {[%emt 0:01:51]} Qxc2 {[%emt 0:00:44]} 29. Nd1 {[%emt 0:02:08]} g4 {[%emt 0:01:03]} 30. f4 {[%emt 0:00:28]} Bd5 {[%emt 0:00:18]} 31. Nf2 {[%emt 0:00:49]} Rde8 {[%emt 0:01:33]} 32. Qg3 {[%emt 0:00:03]} h5 {[%emt 0:00:04]} 33. c4 {[%emt 0:00:42]} Bf3 {[%emt 0:00:42]} 34. Qh4 {[%emt 0:00:27]} Qb2 {[%emt 0:00:36]} 35. Rf1 {[%emt 0:00:22]} Qxd4 {[%emt 0:00:05]} 36. Qg5 {[%emt 0:00:49]} Nd7 {[%emt 0:00:53]} 37. Rf5 {[%emt 0:00:27]} Rhg8 {[%emt 0:01:07]} 38. Qh4 {[%emt 0:00:05]} Qxc4 {[%emt 0:00:40]} 39. Rxh5 {[%emt 0:00:20]} g3 {[%emt 0:00:08]} 0-1

[Event "FIDE WYCC Girls U18 2023"]
[Site "Montesilvano"]
[Date "2023.11.22"]
[Round "9.4"]
[White "Wikar, Martyna"]
[Black "Margadgua Erdenebayar"]
[Result "1-0"]
[ECO "B43"]
[WhiteElo "2228"]
[BlackElo "2013"]
[Annotator "RC"]
[PlyCount "87"]
[EventDate "2023.11.13"]
[EventType "swiss"]
[EventCountry "ITA"]
[SourceTitle "playchess.com"]
[Source "ChessBase"]
[SourceQuality "1"]
[TimeControl "40/5400+30:1800+30"]

1. e4 {[%emt 0:00:03]} c5 {[%emt 0:02:00]} 2. Nc3 {[%emt 0:00:46]} e6 {[%emt 0:00:59]} 3. Nf3 {[%emt 0:04:03]} a6 {[%emt 0:02:01]} 4. d4 {[%emt 0:00:46]} cxd4 {[%emt 0:01:50]} 5. Nxd4 {[%emt 0:00:22]} Ne7 {[%emt 0:01:12]} 6. Bd3 {[%emt 0:01:25]} Nbc6 {[%emt 0:00:35]} 7. Nxc6 {[%emt 0:02:22]} Nxc6 {[%emt 0:02:09]} 8. O-O {[%emt 0:01:17]} Be7 {[%emt 0:04:29]} 9. f4 {[%emt 0:02:59]} d6 {[%emt 0:02:40]} 10. Rf3 {[%emt 0:05:11]} Nd4 {[%emt 0:11:25]} 11. Rg3 {[%emt 0:06:17]} Bh4 {[%emt 0:01:44]} 12. Rxg7 {[%emt 0:13:28]} Kf8 {[%emt 0:08:40]} 13. Rg5 {[%emt 0:00:10]} Bxg5 {[%emt 0:13:03]} 14. fxg5 {[%emt 0:01:47]} b5 {[%emt 0:00:34]} 15. Qh5 {[%emt 0:03:26]} Nc6 {[%emt 0:03:54]} 16. Be3 {[%emt 0:09:47]} Qe7 {[%emt 0:06:30]} 17. Rf1 {[%emt 0:06:01]} Ke8 {[%emt 0:04:35]} 18. e5 {[%emt 0:08:09]} Nxe5 {[%emt 0:04:55]} 19. Ne4 {[%emt 0:00:36]} Bb7 {[%emt 0:01:33]} 20. Nf6+ {[%emt 0:01:16]} Kd8 {[%emt 0:00:58]} 21. Bb6+ {[%emt 0:03:21]} Kc8 {[%emt 0:00:06]} 22. Ng4 {[%emt 0:01:17]} Ng6 {[%emt 0:02:43]} 23. Qh3 {[%emt 0:02:06]} Qxg5 {[%emt 0:03:55]} 24. Bxg6 {[%emt 0:02:09]} Bc6 {[%emt 0:11:07]} 25. Be4 {[%emt 0:02:14]} Kb7 {[%emt 0:03:23]} 26. Be3 {[%emt 0:01:17]} Qg7 {[%emt 0:01:17]} 27. Bxc6+ {[%emt 0:02:50]} Kxc6 {[%emt 0:00:01]} 28. Qf3+ {[%emt 0:00:19]} d5 {[%emt 0:01:04]} 29. Qf4 {[%emt 0:01:20]} Rhg8 {[%emt 0:02:43]} 30. Ne5+ {[%emt 0:00:20]} Kc7 {[%emt 0:02:17]} 31. Qxf7+ {[%emt 0:01:35]} Kd6 {[%emt 0:00:02]} 32. Qxg7 {[%emt 0:02:41]} Rxg7 {[%emt 0:00:02]} 33. Bd4 {[%emt 0:00:22]} Rc7 {[%emt 0:00:57]} 34. c3 {[%emt 0:00:23]} Rg8 {[%emt 0:00:26]} 35. b4 {[%emt 0:00:57]} h5 {[%emt 0:01:22]} 36. Nd3 {[%emt 0:01:00]} Rh7 {[%emt 0:00:21]} 37. Be5+ {[%emt 0:00:33]} Kc6 {[%emt 0:00:46]} 38. Rf6 {[%emt 0:00:20]} Re7 {[%emt 0:00:27]} 39. Rh6 {[%emt 0:01:00]} Rf8 {[%emt 0:00:30]} 40. Bf6 {[%emt 0:00:00]} Ra7 {[%emt 0:00:00]} 41. Bd4 {[%emt 0:01:30]} Rc7 {[%emt 0:02:57]} 42. Rxe6+ {[%emt 0:00:20]} Kb7 {[%emt 0:00:08]} 43. Nc5+ {[%emt 0:00:39]} Kc8 {[%emt 0:00:05]} 44. Rxa6 {[%emt 0:00:11]} 1-0